[Event "37th ECCC 2022"]
[Site "Mayrhofen"]
[Date "2022.10.04"]
[Round "2.26"]
[White "Nagy, Gabor"]
[Black "Van Foreest, Jorden"]
[Result "1/2-1/2"]
[ECO "A16"]
[WhiteElo "2488"]
[BlackElo "2694"]
[Annotator "TA"]
[PlyCount "71"]
[EventDate "2022.10.03"]
[EventType "team-tourn"]
[EventCountry "AUT"]
[SourceTitle "playchess.com"]
[Source "ChessBase"]
[SourceQuality "1"]
[TimeControl "40/5400+30:1800+30"]

{[%evp 14,71,24,16,37,28,52,58,69,35,104,97,96,99,103,92,92,92,92,58,62,59,58,29,43,35,35,35,41,40,62,43,35,48,95,89,139,127,186,153,152,151,131,154,167,112,114,91,105,108,129,98,94,103,107,120,151,57,45,10]} 1. c4 {[%emt 0:00:07]} Nf6 {[%emt 0:00:22]} 2. Nc3 {[%emt 0:00:22]} g6 {[%emt 0:00:08]} 3. g3 {[%emt 0:00:28]} Bg7 {[%emt 0:00:14]} 4. Bg2 {[%emt 0:00:19]} O-O {[%emt 0:00:14]} 5. d4 {[%emt 0:00:28][%cal Bd2d4,Bd4d5][%mdl 32]} d6 {[%emt 0:00:38]} 6. e3 {[%emt 0:01:37]} Nc6 {[%emt 0:02:47]} 7. Nge2 {[%emt 0:00:49]} e5 {[%emt 0:00:39]} 8. d5 {[%emt 0:01:49]} Ne7 {[%emt 0:09:29] E61: King's Indian: Early deviations for White, including Smyslov System.} 9. O-O {[%emt 0:01:04]} h5 {[%emt 0:01:24]} 10. e4 {[%emt 0:06:38] [#]} c6 $146 {[%emt 0:03:18]} ({Predecessor:} 10... Nd7 11. Be3 f5 12. Qd2 Nf6 13. Bg5 Nh7 14. Bh6 fxe4 15. Bxg7 e3 16. Qxe3 Nf5 {1-0 (72) Iturrizaga Bonelli,E (2646)-Andriasian,Z (2608) Moscow 2013}) 11. h3 {[%emt 0:06:26]} Bd7 {[%emt 0:01:59]} ({Black should try} 11... cxd5 $14 12. cxd5 b6) 12. dxc6 $16 {[%emt 0:03:10]} Bxc6 {[%emt 0:01:52]} 13. Be3 {[%emt 0:02:14]} b6 {[%emt 0:04:34]} 14. Qd2 {[%emt 0:03:26]} Qd7 {[%emt 0:00:22]} 15. Rfd1 {[%emt 0:01:06]} Qb7 {[%emt 0:03:20][%cal Rf6e4]} 16. Nd5 {[%emt 0:08:36]} Nexd5 {[%emt 0:04:21]} 17. cxd5 {[%emt 0:02:35]} Bd7 {[%emt 0:04:49]} 18. Qb4 {[%emt 0:02:29]} Rfd8 {[%emt 0:02:53]} 19. a4 {[%emt 0:06:01]} (19. Qxd6 $2 Bb5 20. Qb4 Bxe2 $19) 19... a5 {[%emt 0:01:07]} 20. Qd2 {[%emt 0:03:10]} ({But not} 20. Qxd6 Bxa4 $1 21. Qxd8+ (21. Qxe5 $2 Bxd1 22. Rxd1 Nxd5 $19) (21. Qxb6 $2 Qxb6 22. Bxb6 Bxd1 $19) 21... Rxd8 $17) 20... Rdc8 {[%emt 0:00:35][%cal Bd8c8,Bc8c4,Bc4b4][%mdl 32]} 21. Nc3 {[%emt 0:02:07]} Rc4 {[%emt 0:03:13]} 22. b3 {[%emt 0:01:07]} Rb4 {[%emt 0:00:59]} 23. Rdb1 {[%emt 0:02:04]} Rc8 {[%emt 0:00:33]} (23... b5 $14 {is superior.}) 24. f3 $1 {[%emt 0:01:36]} h4 {[%emt 0:08:34] [#]} (24... Nh7 $142) 25. g4 $1 $36 {[%emt 0:02:58][%mdl 2048] White is on the roll.} Ne8 {[%emt 0:06:30]} (25... Nh7 $16 26. Bf1 (26. Na2 Rd4 $16) 26... Qc7) 26. Na2 {[%emt 0:02:59]} Rd4 {[%emt 0:00:05]} 27. Bxd4 {[%emt 0:00:08]} exd4 {[%emt 0:00:04]} 28. Rc1 {[%emt 0:02:28]} Ra8 {[%emt 0:00:06]} 29. f4 {[%emt 0:00:34]} (29. Rab1 $18) 29... b5 {[%emt 0:00:33]} 30. Re1 {[%emt 0:02:09]} bxa4 {[%emt 0:10:05]} 31. bxa4 {[%emt 0:00:13]} Bxa4 {[%emt 0:00:07][%cal Od4d3]} 32. Nc1 {[%emt 0:02:22]} Bb5 {[%emt 0:05:21][%cal Od4d3]} 33. e5 {[%emt 0:03:20]} Qa7 {[%emt 0:04:53]} 34. Kh1 {[%emt 0:03:06] Strongly threatening Nb3. White is more active.} a4 {[%emt 0:00:02] [#] Against Nb3} 35. Nd3 {[%emt 0:04:06]} (35. Qb4 $1 $16 {[%cal Rb4b5]} Qc5 36. Qxc5 dxc5 37. Rb1) 35... Qa5 $14 {[%emt 0:00:08]} 36. Qxa5 {[%emt 0:03:47] Weighted Error Value: White=0.14 (very precise) /Black=0.13 (very precise)} 1/2-1/2

[Event "37th ECCC 2022"]
[Site "Mayrhofen"]
[Date "2022.10.04"]
[Round "2.27"]
[White "Amin, Bassem"]
[Black "Glek, Igor"]
[Result "1-0"]
[ECO "B50"]
[WhiteElo "2667"]
[BlackElo "2456"]
[Annotator "TA"]
[PlyCount "107"]
[EventDate "2022.10.03"]
[EventType "team-tourn"]
[EventCountry "AUT"]
[SourceTitle "playchess.com"]
[Source "ChessBase"]
[SourceQuality "1"]
[TimeControl "40/5400+30:1800+30"]

{[%evp 16,107,0,-1,12,14,14,12,11,0,7,13,45,39,37,48,54,41,62,51,51,50,56,40,42,20,44,51,59,62,58,54,106,98,104,93,71,68,68,68,99,54,51,51,52,52,52,52,50,39,54,54,50,0,0,0,106,0,149,152,152,102,299,299,297,297,1483,1483,1014,514,1304,1229,2209,2141,1977,1014,2031,2144,1889,1794,1427,1304,1297,1297,1765,872,5081,5081,5081,5081,5081,5081,29976,29976]} 1. e4 {[%emt 0:01:04]} c5 {[%emt 0:06:09]} 2. Nf3 {[%emt 0:00:12]} d6 {[%emt 0:00:11]} 3. g3 {[%emt 0:00:41]} Nc6 {[%emt 0:00:13]} 4. Bg2 {[%emt 0:00:06]} g6 {[%emt 0:00:16]} 5. O-O {[%emt 0:00:09]} Bg7 {[%emt 0:00:03]} 6. d3 {[%emt 0:01:38]} e5 {[%emt 0:01:00]} 7. a3 {[%emt 0:00:42]} Nge7 {[%emt 0:00:27]} 8. c3 {[%emt 0:00:46]} O-O {[%emt 0:08:37]} 9. b4 {[%emt 0:00:12]} d5 {[%emt 0:00:07] A04: Unusual lines after 1 Nf3 and King's Indian Attack.} 10. Nbd2 {[%emt 0:00:27]} d4 {[%emt 0:00:56]} 11. cxd4 {[%emt 0:07:21] [#]} Nxd4 $146 {[%emt 0:01:49] The position is equal.} ({Predecessor:} 11... cxd4 12. b5 Na5 13. a4 Be6 14. Ng5 Bd7 15. f4 f6 16. Ngf3 a6 17. Nb3 h6 {0-1 (38) Martinovic,S (2440)-Djuric,S (2495) Cetinje 1990}) 12. bxc5 {[%emt 0:01:10]} Bg4 {[%emt 0:00:42]} 13. h3 {[%emt 0:15:48]} Nxf3+ {[%emt 0:01:42]} 14. Nxf3 {[%emt 0:04:20]} Bxf3 {[%emt 0:00:12]} 15. Bxf3 {[%emt 0:00:07][%cal Bg2f3,Bf3g4,Bg4d1,Bd1a4][%mdl 32]} Nc6 {[%emt 0:08:05]} 16. Rb1 {[%emt 0:01:51]} Qe7 {[%emt 0:01:55]} 17. Be3 {[%emt 0:00:12]} Rad8 {[%emt 0:03:39]} 18. Qb3 {[%emt 0:07:12]} Rd7 {[%emt 0:09:14]} 19. Bg4 {[%emt 0:00:49]} Rc7 {[%emt 0:00:06]} 20. Rfc1 {[%emt 0:02:37]} Rd8 {[%emt 0:00:54]} 21. h4 {[%emt 0:00:48]} Nd4 {[%emt 0:04:00]} 22. Qa4 {[%emt 0:02:55]} h5 {[%emt 0:18:56]} 23. Bd1 {[%emt 0:00:18]} a6 {[%emt 0:03:57]} (23... Kh7 $14) 24. Rb6 $16 {[%emt 0:03:19]} Kh7 {[%emt 0:02:54]} 25. Kg2 {[%emt 0:16:39]} Bh6 {[%emt 0:09:47]} 26. Bxh6 {[%emt 0:05:07]} Kxh6 {[%emt 0:00:07]} 27. Qb4 {[%emt 0:02:02]} Kg7 {[%emt 0:03:57]} 28. Ba4 {[%emt 0:05:10]} Ne6 {[%emt 0:04:27][%cal Re6c5]} 29. c6 {[%emt 0:05:23]} Qxb4 {[%emt 0:01:39]} 30. axb4 {[%emt 0:00:19]} bxc6 {[%emt 0:01:18]} 31. Rxa6 {[%emt 0:06:16]} Rxd3 {[%emt 0:02:21]} 32. Raxc6 {[%emt 0:00:24]} Ra7 {[%emt 0:03:45]} 33. Bb5 {[%emt 0:00:26]} Rd2 {[%emt 0:01:02]} 34. Bc4 {[%emt 0:00:09]} (34. Ra6 $14 Rxa6 35. Bxa6) 34... Nd4 $11 {[%emt 0:00:23]} 35. Rc5 {[%emt 0:00:41]} Rb2 {[%emt 0:00:57]} (35... Nc2 $1 $11 {keeps the balance.}) 36. Bd5 {[%emt 0:05:46]} ({White must play} 36. Rxe5 $16 Rxb4 37. Rd5) 36... Rxb4 {[%emt 0:02:09]} (36... Ra6 $11 {remains equal.}) 37. Rc7 $36 {[%emt 0:00:01][%mdl 2048] White has strong initiative.} Rba4 {[%emt 0:00:14] [#]} 38. Bxf7 {[%emt 0:00:12] White is more active.} ({White should play} 38. R1c4 $1) 38... Rxc7 $2 {[%emt 0:00:43] This move loses the game for Black.} (38... Kf6 $16 {is a better defense.} 39. Bd5 Rxc7 40. Rxc7 g5) 39. Rxc7 {[%emt 0:00:01][%mdl 4096] Endgame KRB-KRN} Nb5 {[%emt 0:00:18]} 40. Rd7 {[%emt 0:00:15] And now Bb3+ would win.} Ra7 $2 {[%emt 0:00:24]} (40... Rd4 41. Bd5+ Kh8) 41. Rxa7 $18 {[%emt 0:31:24]} Nxa7 {[%emt 0:30:01] KB-KN} 42. Be8 {[%emt 0:00:15] aiming for f4.} Nc8 {[%emt 0:00:05]} 43. f4 {[%emt 0:01:13]} Nd6 {[%emt 0:00:22]} 44. Bc6 {[%emt 0:00:02]} Kf6 {[%emt 0:00:13]} 45. Kf3 {[%emt 0:00:10]} Nc4 {[%emt 0:02:04]} 46. Ke2 {[%emt 0:00:27]} Nd6 {[%emt 0:00:00]} 47. Kd3 {[%emt 0:00:00]} Ke6 {[%emt 0:00:00]} 48. Ba4 {[%emt 0:00:00]} Kf6 {[%emt 0:00:00]} 49. Bd7 {[%emt 0:00:00]} Nf7 {[%emt 0:00:00]} 50. Be8 {[%emt 0:00:00]} exf4 {[%emt 0:00:00]} 51. gxf4 {[%emt 0:00:00] White threatens Bxf7 and mate.} Nd8 {[%emt 0:00:00]} 52. e5+ {[%emt 0:00:00]} Kg7 {[%emt 0:00:00]} 53. Ke4 {[%emt 0:00:00] Threatening mate with Kd5.} Ne6 {[%emt 0:00:00] [#]} 54. Bxg6 $1 {[%emt 0:00:00][%mdl 512] Weighted Error Value: White=0.20 (precise) /Black=0.42} 1-0

[Event "37th ECCC 2022"]
[Site "Mayrhofen"]
[Date "2022.10.04"]
[Round "2.28"]
[White "Klein, Felix"]
[Black "Vocaturo, Daniele"]
[Result "1/2-1/2"]
[ECO "D45"]
[WhiteElo "2275"]
[BlackElo "2615"]
[Annotator "TA"]
[PlyCount "144"]
[EventDate "2022.10.03"]
[EventType "team-tourn"]
[EventCountry "AUT"]
[SourceTitle "playchess.com"]
[Source "ChessBase"]
[SourceQuality "1"]
[TimeControl "40/5400+30:1800+30"]

{[%evp 21,144,0,9,0,20,17,27,11,24,22,14,-22,0,0,25,14,18,-30,-31,-32,-38,-38,-19,-34,97,92,109,109,118,49,302,284,354,308,380,309,298,300,410,371,398,394,373,396,385,339,287,314,316,112,112,112,117,109,109,114,110,110,128,116,163,159,157,157,157,157,153,102,116,106,153,85,142,85,85,85,85,78,78,78,78,8,8,8,8,0,0,0,8,0,8,8,8,8,8,8,8,8,8,0,23,114,168,0,0,0,0,0,0,0,0,0,0,0,0,0,0,0,0,0,0,0,0,0,0]} 1. d4 {[%emt 0:00:03]} Nf6 {[%emt 0:00:51]} 2. c4 {[%emt 0:00:05]} e6 {[%emt 0:01:25]} 3. Nf3 {[%emt 0:00:06]} d5 {[%emt 0:00:49]} 4. Nc3 {[%emt 0:00:05]} c6 {[%emt 0:01:11]} 5. e3 {[%emt 0:00:15]} Nbd7 {[%emt 0:00:54]} 6. Qc2 {[%emt 0:00:20]} Bd6 {[%emt 0:00:50]} 7. Bd3 {[%emt 0:01:26]} O-O {[%emt 0:03:29]} 8. O-O {[%emt 0:00:55]} dxc4 {[%emt 0:01:16]} 9. Bxc4 {[%emt 0:00:05]} b5 {[%emt 0:00:25]} 10. Bd3 {[%emt 0:00:47]} Bb7 {[%emt 0:00:35]} 11. e4 {[%emt 0:10:33]} e5 {[%emt 0:01:27]} 12. h3 {[%emt 0:02:26] D46: Semi-Slav: 5 e3 Nbd7 6 Bd3, Black avoids the Meran.} Re8 {[%emt 0:04:58]} 13. dxe5 {[%emt 0:06:40]} Nxe5 {[%emt 0:00:22]} 14. Nxe5 {[%emt 0:00:06] White has an edge.} Bxe5 {[%emt 0:00:09]} ({Don't play} 14... Rxe5 15. f4 Rh5 16. e5 Bc5+ 17. Kh1 $16) 15. Be3 {[%emt 0:00:29]} a6 {[%emt 0:08:47][%cal Oc6c5]} 16. Rfe1 {[%emt 0:33:19]} Qe7 {[%emt 0:14:54]} (16... c5 $5) 17. Ne2 {[%emt 0:02:53]} Bd6 {[%emt 0:00:56]} 18. Nd4 {[%emt 0:01:52] [#]} g6 $146 {[%emt 0:00:40] Against Nf5} ({Predecessor:} 18... Bb4 19. Nf5 Qe6 20. Bd2 c5 21. Bxb4 cxb4 22. e5 Rec8 23. Qd2 Ne8 24. Qxb4 Rd8 {1-0 (47) Kuzubov,Y-Shalimov,V (2452) Alushta 2002}) 19. Nxc6 {[%emt 0:07:29]} (19. Nb3 $142) 19... Bxc6 $11 {[%emt 0:04:06]} 20. Qxc6 {[%emt 0:00:14]} Rec8 $1 {[%emt 0:03:34]} 21. Qb6 {[%emt 0:00:34]} Bc7 {[%emt 0:04:45][%mdl 1024] Black has compensation.} 22. Qd4 {[%emt 0:01:48]} Ba5 {[%emt 0:09:28]} (22... Be5 $15 {stays ahead.} 23. Qb6 Bc7) 23. Red1 $1 $16 {[%emt 0:02:53][%cal Be1d1,Bd1d3,Bd3e3,Be3e2][%mdl 32]} Rd8 {[%emt 0:02:29]} 24. Qc5 {[%emt 0:00:35]} Qe6 {[%emt 0:00:11]} 25. Rac1 {[%emt 0:14:39]} (25. a4 $1 $16 {[%cal Ra4b5]}) 25... Nxe4 $2 {[%emt 0:05:31][%mdl 8192]} (25... Bd2 $14) 26. Qa3 $18 {[%emt 0:01:32]} Rxd3 {[%emt 0:03:42]} 27. Rxd3 {[%emt 0:01:35]} Bb6 {[%emt 0:01:45]} 28. Bxb6 {[%emt 0:01:20]} Qxb6 {[%emt 0:00:05]} 29. Re3 {[%emt 0:00:41]} Nd6 {[%emt 0:01:21][%cal Be4d6,Bd6c4,Bc4d2,Bd2f3,Bf3e1][%mdl 32]} 30. Qc5 {[%emt 0:01:41]} Qxc5 {[%emt 0:00:06]} 31. Rxc5 {[%emt 0:00:03][%mdl 4096] Endgame KRR-KRN} Nc4 {[%emt 0:00:08]} 32. Re2 {[%emt 0:03:18]} Rd8 {[%emt 0:00:05]} 33. a4 {[%emt 0:01:18]} Rd1+ {[%emt 0:00:50]} 34. Kh2 {[%emt 0:00:04]} Nd2 {[%emt 0:00:40] aiming for ...Nf1+.} 35. g3 $2 {[%emt 0:03:11]} ({Stronger than} 35. axb5 Nf1+ 36. Kh1 Ng3+ 37. Kh2 Nf1+ 38. Kh1 Ng3+ 39. Kh2 Nf1+ $11) (35. Kg3 $18 {is more deadly.}) 35... Nf3+ $16 {[%emt 0:01:48]} 36. Kg2 {[%emt 0:00:04]} Ne1+ {[%emt 0:00:09] [#]} 37. Rxe1 $1 {[%emt 0:00:17][%mdl 512]} Rxe1 {[%emt 0:00:04]} 38. axb5 {[%emt 0:00:07]} axb5 {[%emt 0:00:09]} 39. Rxb5 {[%emt 0:00:03] KR-KR} h5 {[%emt 0:01:19]} 40. h4 {[%emt 0:00:12]} Kf8 {[%emt 0:02:29]} (40... Kg7 $16 {was necessary.} 41. Rb6 Kf8) 41. Rb7 $18 {[%emt 0:31:41]} Kg7 {[%emt 0:30:10]} 42. b4 {[%emt 0:00:20]} Rb1 {[%emt 0:03:43]} 43. Kf3 {[%emt 0:02:49] White is more active.} Rb2 {[%emt 0:00:16]} 44. Ke3 {[%emt 0:00:00]} (44. Rb6 $142 $1) 44... Kf6 $16 {[%emt 0:00:00]} 45. b5 {[%emt 0:00:00]} Ke6 {[%emt 0:00:00]} (45... g5 $142 46. hxg5+ Kxg5) 46. b6 {[%emt 0:00:00]} (46. f4 $142 $1) 46... Kd5 {[%emt 0:00:00] [#]} 47. Rxf7 {[%emt 0:00:00]} (47. f3 $142 $1) 47... Rxb6 {[%emt 0:00:00]} 48. Re7 {[%emt 0:00:00] Threatens to win with Kf4.} Kd6 {[%emt 0:00:00]} 49. Re4 {[%emt 0:00:00]} Rb5 {[%emt 0:00:00]} 50. f3 {[%emt 0:00:00]} Rf5 {[%emt 0:00:00]} 51. g4 {[%emt 0:00:00]} ({Better is} 51. Kf2 $16) 51... hxg4 $1 $11 {[%emt 0:00:00]} 52. Rxg4 {[%emt 0:00:00]} ({Don't take} 52. fxg4 Rf1 $14) 52... Rf6 {[%emt 0:00:00]} 53. Re4 {[%emt 0:00:00]} Rf5 {[%emt 0:00:00]} 54. Rg4 {[%emt 0:01:44]} Rf6 {[%emt 0:00:00]} 55. Rf4 {[%emt 0:00:30]} Re6+ {[%emt 0:00:00]} 56. Re4 {[%emt 0:00:04] Black must now prevent Kf4.} Rf6 {[%emt 0:00:24]} 57. Kf2 {[%emt 0:00:12]} Rf5 {[%emt 0:04:50]} 58. Kg3 {[%emt 0:00:07]} Kd7 {[%emt 0:04:42]} 59. Kg4 {[%emt 0:00:10]} Ra5 {[%emt 0:02:12]} 60. f4 {[%emt 0:01:18]} Ra1 {[%emt 0:01:08]} 61. Kg5 {[%emt 0:00:25]} Rg1+ {[%emt 0:00:06] [#]} 62. Kf6 $2 {[%emt 0:00:31]} ({Only move:} 62. Kh6 $1 $18) 62... Rg4 {[%emt 0:00:08] The position is equal.} 63. Kf7 {[%emt 0:03:07]} Kd6 {[%emt 0:01:10]} 64. Ra4 {[%emt 0:00:11]} Kd5 {[%emt 0:01:15]} 65. Kf6 {[%emt 0:00:35]} Kd6 {[%emt 0:01:08]} 66. Kg7 {[%emt 0:02:03]} Ke6 {[%emt 0:01:47]} 67. Ra6+ {[%emt 0:00:32]} Kf5 {[%emt 0:00:09]} 68. Rf6+ {[%emt 0:00:56]} Ke4 {[%emt 0:00:05]} 69. Rxg6 Rxh4 {[%emt 0:00:06]} 70. Ra6 {[%emt 0:00:55]} Rxf4 {[%emt 0:00:04]} 71. Ra4+ {[%emt 0:00:04]} Kf3 {[%emt 0:00:02]} 72. Rxf4+ {[%emt 0:00:03]} Kxf4 {Black escapes into a draw.  Weighted Error Value: White=0.22 (precise) /Black=0.23 (precise)} 1/2-1/2

[Event "37th ECCC 2022"]
[Site "Mayrhofen"]
[Date "2022.10.04"]
[Round "2.29"]
[White "Van Wely, Loek"]
[Black "Coenen, Norbert"]
[Result "1-0"]
[ECO "A48"]
[WhiteElo "2629"]
[BlackElo "2268"]
[Annotator "TA"]
[PlyCount "71"]
[EventDate "2022.10.03"]
[EventType "team-tourn"]
[EventCountry "AUT"]
[SourceTitle "playchess.com"]
[Source "ChessBase"]
[SourceQuality "1"]
[TimeControl "40/5400+30:1800+30"]

{[%evp 18,71,8,11,24,13,53,50,51,38,47,45,63,64,113,79,79,47,82,77,84,77,81,82,89,80,95,100,195,207,207,204,218,187,185,185,198,195,197,189,208,168,207,201,280,283,290,283,406,413,424,300,292,292,488,325]} 1. Nf3 {[%emt 0:00:09]} Nf6 {[%emt 0:00:16]} 2. d4 {[%emt 0:01:59]} g6 {[%emt 0:00:40]} 3. Bg5 {[%emt 0:00:46]} Bg7 {[%emt 0:00:35]} 4. Nbd2 {[%emt 0:00:11]} d5 {[%emt 0:00:28]} 5. e3 {[%emt 0:00:18]} Nbd7 {[%emt 0:01:17]} 6. Be2 {[%emt 0:03:14]} O-O {[%emt 0:01:46]} 7. O-O {[%emt 0:00:39]} c5 {[%emt 0:01:09]} 8. c3 {[%emt 0:00:33]} b6 {[%emt 0:01:46]} 9. a4 {[%emt 0:02:00][%cal Ba2a4,Ba4a5][%mdl 32]} Bb7 {[%emt 0:01:48]} 10. a5 {[%emt 0:00:43]} Bc6 {[%emt 0:15:10] D03: 1 d4 d5 2 Nf3 Nf6 3 Bg5, including Torre Attack with early ...d5.} 11. Qb3 {[%emt 0:12:40] [#]} b5 $146 {[%emt 0:08:52]} ({Predecessor:} 11... Re8 12. Rfd1 Qc8 13. Bh4 Qb7 14. a6 Qc8 15. Bb5 e5 16. dxe5 Nxe5 17. Nxe5 Rxe5 18. Nf3 {1-0 (38) Gunina,V (2522)-Kashlinskaya,A (2439) Kazan 2014}) 12. dxc5 {[%emt 0:04:32]} ({Don't play} 12. Bxb5 Rb8 13. Bxc6 Rxb3 14. Nxb3 c4 $15) 12... Nxc5 {[%emt 0:00:47] White is slightly better.} 13. Qb4 {[%emt 0:01:57]} Ne6 {[%emt 0:02:00]} 14. Nd4 {[%emt 0:02:39]} ({Worse is} 14. Bxb5 Rb8 15. Bxf6 Bxf6 16. Bxc6 Rxb4 17. cxb4 Qd6 $17) 14... Nxd4 {[%emt 0:00:57]} 15. cxd4 {[%emt 0:00:07]} h6 {[%emt 0:07:04]} (15... Qd7 $14) 16. Bh4 {[%emt 0:05:56] White has more active pieces. The black rooks are badly placed.} a6 {[%emt 0:05:05]} 17. Rfc1 {[%emt 0:00:38]} Bd7 {[%emt 0:03:32]} 18. Bg3 {[%emt 0:07:41] Black is now going downhill.} Rc8 {[%emt 0:06:49]} 19. Rxc8 {[%emt 0:06:19]} Qxc8 {[%emt 0:05:58]} 20. Qxe7 {[%emt 0:02:26]} Qc2 {[%emt 0:00:18][%csl LRb2,LRd2]} 21. Qb4 {[%emt 0:00:56]} Rc8 {[%emt 0:00:40] [#] And now ...Bf8 would win.} 22. Bd6 {[%emt 0:02:36]} Bf8 {[%emt 0:11:27]} (22... Bg4 $16 {keeps fighting.} 23. Bxg4 Nxg4) 23. Bxf8 $18 {[%emt 0:01:19]} Rxf8 {[%emt 0:00:10]} 24. Bd1 {[%emt 0:02:52]} Qd3 {[%emt 0:02:13]} 25. Ra3 {[%emt 0:05:40]} Qf5 {[%emt 0:01:04]} 26. Rc3 {[%emt 0:00:10]} Rc8 {[%emt 0:06:07]} 27. Rxc8+ {[%emt 0:01:55]} Bxc8 {[%emt 0:00:05]} 28. Qc3 {[%emt 0:00:43]} Bd7 {[%emt 0:01:36]} 29. f3 {[%emt 0:06:03]} Qe6 {[%emt 0:01:51][%cal Ob5b4]} 30. Nb3 {[%emt 0:06:27]} b4 {[%emt 0:01:12]} 31. Qd2 {[%emt 0:00:48]} ({But not} 31. Qxb4 $2 Qxe3+ 32. Kh1 Qf2 $19) 31... Bb5 {[%emt 0:01:56]} 32. Nc5 {[%emt 0:00:24]} Qe7 {[%emt 0:00:43]} (32... Qc6 {is a better defense.} 33. Qxb4 Ne8) 33. Be2 {[%emt 0:00:28]} Qe8 {[%emt 0:01:24]} 34. b3 {[%emt 0:03:23]} Qc6 {[%emt 0:01:23]} 35. Kf2 {[%emt 0:00:55]} Nd7 $2 {[%emt 0:00:46] [#]} (35... Ne8 {might work better.} 36. Qxb4 Nd6) 36. Qxb4 {[%emt 0:00:48] Weighted Error Value: White=0.11 (very precise) /Black=0.34} 1-0